[Event "Titled Tuesday Blitz July 13 2021"]
[White "Tristan, Leonardo"]
[Black "Peralta, Eduardo"]
[WhiteFideId "113816"]
[BlackFideId "3700062"]
[WhiteElo "2404"]
[BlackElo "2205"]
[Result "0-1"]
[Round "09"]
[TimeControl "180+1"]
[Date "2021.07.13"]
[WhiteClock "0:00:09"]
[BlackClock "0:00:12"]

1. d4 {[%clk 0:03:00]}  Nf6 {[%clk 0:02:59]} 2. Bg5 {[%clk 0:03:00]}  c5 {[%clk 0:02:54]} 3. d5 {[%clk 0:03:00]}  e5 {[%clk 0:02:54]} 4. Nc3 {[%clk 0:02:50]}  d6 {[%clk 0:02:51]} 5. e4 {[%clk 0:02:45]}  Be7 {[%clk 0:02:51]} 6. Nf3 {[%clk 0:02:46]}  O-O {[%clk 0:02:50]} 7. Bxf6 {[%clk 0:02:12]}  Bxf6 {[%clk 0:02:49]} 8. h3 {[%clk 0:02:11]}  g6 {[%clk 0:02:46]} 9. Nd2 {[%clk 0:02:10]}  Bg5 {[%clk 0:02:43]} 10. Nc4 {[%clk 0:02:09]}  f5 {[%clk 0:02:37]} 11. Bd3 {[%clk 0:02:09]}  Be7 {[%clk 0:02:12]} 12. a4 {[%clk 0:02:08]}  Nd7 {[%clk 0:02:11]} 13. a5 {[%clk 0:02:08]}  Nf6 {[%clk 0:02:09]} 14. Qe2 {[%clk 0:01:52]}  Bd7 {[%clk 0:02:05]} 15. f3 {[%clk 0:01:49]}  Nh5 {[%clk 0:02:02]} 16. Rg1 {[%clk 0:01:27]}  Nf4 {[%clk 0:01:48]} 17. Qf1 {[%clk 0:01:23]}  fxe4 {[%clk 0:01:42]} 18. Bxe4 {[%clk 0:01:15]}  Rb8 {[%clk 0:01:41]} 19. Ne2 {[%clk 0:01:06]}  b5 {[%clk 0:01:12]} 20. axb6 {[%clk 0:01:07]}  axb6 {[%clk 0:01:10]} 21. Nxf4 {[%clk 0:01:07]}  exf4 {[%clk 0:01:09]} 22. Qd3 {[%clk 0:00:55]}  b5 {[%clk 0:01:07]} 23. Nd2 {[%clk 0:00:40]}  Bh4+ {[%clk 0:01:07]} 24. Kd1 {[%clk 0:00:40]}  Bf6 {[%clk 0:01:07]} 25. c3 {[%clk 0:00:40]}  Qb6 {[%clk 0:01:00]} 26. Kc2 {[%clk 0:00:32]}  Kg7 {[%clk 0:01:00]} 27. h4 {[%clk 0:00:29]}  c4 {[%clk 0:00:57]} 28. Qe2 {[%clk 0:00:27]}  b4 {[%clk 0:00:57]} 29. Nxc4 {[%clk 0:00:27]}  Qc5 {[%clk 0:00:55]} 30. Ra5 {[%clk 0:00:25]}  Qxg1 {[%clk 0:00:49]} 31. Nxd6 {[%clk 0:00:20]}  bxc3 {[%clk 0:00:30]} 32. b3 {[%clk 0:00:21]}  Ra8 {[%clk 0:00:25]} 33. Ra6 {[%clk 0:00:06]}  Qc5 {[%clk 0:00:19]} 34. Nb7 {[%clk 0:00:04]}  Qe3 {[%clk 0:00:16]} 35. Qxe3 {[%clk 0:00:02]}  fxe3 {[%clk 0:00:17]} 36. Nc5 {[%clk 0:00:02]}  Rxa6 {[%clk 0:00:15]} 37. Nxa6 {[%clk 0:00:03]}  Bb5 {[%clk 0:00:14]} 38. Nb4 {[%clk 0:00:02]}  e2 {[%clk 0:00:14]} 39. Nd3 {[%clk 0:00:03]}  Bxd3+ {[%clk 0:00:13]} 40. Kxd3 {[%clk 0:00:03]}  e1=Q {[%clk 0:00:13]} 41. h5 {[%clk 0:00:04]}  Qd2+ {[%clk 0:00:14]} 42. Kc4 {[%clk 0:00:05]}  c2 {[%clk 0:00:14]} 43. Kb5 {[%clk 0:00:06]}  c1=Q {[%clk 0:00:15]} 44. h6+ {[%clk 0:00:07]}  Kxh6 {[%clk 0:00:14]} 45. Ka6 {[%clk 0:00:08]}  Qdb2 {[%clk 0:00:14]} 46. b4 {[%clk 0:00:08]}  Qc7 {[%clk 0:00:13]} 47. Kb5 {[%clk 0:00:09]}  Rb8+ {[%clk 0:00:12]} 0-1


[Site "https://www.chess.com"]

[Event "Titled Tuesday Blitz July 13 2021"]
[White "Tsaruk, Maksim"]
[Black "Csonka, Balazs"]
[WhiteFideId "13511173"]
[BlackFideId "742910"]
[WhiteElo "2184"]
[BlackElo "2404"]
[Result "0-1"]
[Round "09"]
[TimeControl "180+1"]
[Date "2021.07.13"]
[WhiteClock "0:00:10"]
[BlackClock "0:01:14"]

1. e4 {[%clk 0:03:00]}  e6 {[%clk 0:03:00]} 2. d4 {[%clk 0:02:57]}  d5 {[%clk 0:03:01]} 3. Nd2 {[%clk 0:02:58]}  Nf6 {[%clk 0:02:59]} 4. e5 {[%clk 0:02:58]}  Nfd7 {[%clk 0:02:59]} 5. c3 {[%clk 0:02:59]}  c5 {[%clk 0:02:59]} 6. Bd3 {[%clk 0:03:00]}  Nc6 {[%clk 0:02:59]} 7. Ne2 {[%clk 0:03:01]}  cxd4 {[%clk 0:02:58]} 8. cxd4 {[%clk 0:03:02]}  f6 {[%clk 0:02:58]} 9. exf6 {[%clk 0:03:00]}  Nxf6 {[%clk 0:02:59]} 10. O-O {[%clk 0:03:00]}  Bd6 {[%clk 0:02:58]} 11. Nf3 {[%clk 0:03:01]}  O-O {[%clk 0:02:58]} 12. Bf4 {[%clk 0:02:57]}  Bxf4 {[%clk 0:02:55]} 13. Nxf4 {[%clk 0:02:58]}  Ne4 {[%clk 0:02:56]} 14. Ne2 {[%clk 0:02:56]}  Rxf3 {[%clk 0:02:55]} 15. gxf3 {[%clk 0:02:56]}  Ng5 {[%clk 0:02:54]} 16. f4 {[%clk 0:02:33]}  Nh3+ {[%clk 0:02:52]} 17. Kg2 {[%clk 0:01:43]}  Qh4 {[%clk 0:02:53]} 18. f5 {[%clk 0:01:42]}  e5 {[%clk 0:02:04]} 19. dxe5 {[%clk 0:01:34]}  Nxe5 {[%clk 0:01:58]} 20. f4 {[%clk 0:01:02]}  Ng4 {[%clk 0:01:47]} 21. Ng3 {[%clk 0:01:02]}  Ne3+ {[%clk 0:01:45]} 22. Kh1 {[%clk 0:00:57]}  Nxd1 {[%clk 0:01:44]} 23. Raxd1 {[%clk 0:00:58]}  Bd7 {[%clk 0:01:38]} 24. Bc2 {[%clk 0:00:28]}  Bc6 {[%clk 0:01:34]} 25. Bb3 {[%clk 0:00:29]}  Rd8 {[%clk 0:01:26]} 26. Rd4 {[%clk 0:00:28]}  Kh8 {[%clk 0:01:22]} 27. Kg2 {[%clk 0:00:26]}  Ng5 {[%clk 0:01:18]} 28. Rfd1 {[%clk 0:00:20]}  Qh3+ {[%clk 0:01:14]} 29. Kh1 {[%clk 0:00:10]}  Nf3 {[%clk 0:01:14]} 0-1


[Site "https://www.chess.com"]

[Event "Titled Tuesday Blitz July 13 2021"]
[White "Tsotsonava, Elene"]
[Black "Najdin, Danil"]
[WhiteFideId "13615939"]
[BlackFideId "4172426"]
[WhiteElo "1847"]
[BlackElo "2193"]
[Result "1-0"]
[Round "09"]
[TimeControl "180+1"]
[Date "2021.07.13"]
[WhiteClock "0:00:33"]
[BlackClock "0:00:10"]

1. e4 {[%clk 0:02:58]}  e5 {[%clk 0:02:55]} 2. Nf3 {[%clk 0:02:57]}  Nc6 {[%clk 0:02:53]} 3. Nc3 {[%clk 0:02:58]}  Nf6 {[%clk 0:02:51]} 4. d4 {[%clk 0:02:58]}  exd4 {[%clk 0:02:51]} 5. Nxd4 {[%clk 0:02:59]}  Bb4 {[%clk 0:02:51]} 6. Nxc6 {[%clk 0:03:00]}  bxc6 {[%clk 0:02:52]} 7. Bd3 {[%clk 0:02:59]}  O-O {[%clk 0:02:51]} 8. O-O {[%clk 0:02:58]}  d5 {[%clk 0:02:51]} 9. exd5 {[%clk 0:02:59]}  cxd5 {[%clk 0:02:51]} 10. Bg5 {[%clk 0:03:00]}  c6 {[%clk 0:02:51]} 11. Qf3 {[%clk 0:03:00]}  Be7 {[%clk 0:02:43]} 12. h3 {[%clk 0:03:00]}  h6 {[%clk 0:02:33]} 13. Bf4 {[%clk 0:02:55]}  Re8 {[%clk 0:02:22]} 14. Rfe1 {[%clk 0:02:53]}  Bb4 {[%clk 0:02:11]} 15. a3 {[%clk 0:02:41]}  Ba5 {[%clk 0:01:44]} 16. Rxe8+ {[%clk 0:02:35]}  Qxe8 {[%clk 0:01:44]} 17. Bxh6 {[%clk 0:02:33]}  Bxc3 {[%clk 0:01:29]} 18. bxc3 {[%clk 0:02:31]}  Ne4 {[%clk 0:01:30]} 19. Be3 {[%clk 0:02:21]}  Nxc3 {[%clk 0:01:24]} 20. Bd4 {[%clk 0:02:19]}  Ne4 {[%clk 0:01:24]} 21. Re1 {[%clk 0:02:10]}  f5 {[%clk 0:01:24]} 22. Qf4 {[%clk 0:01:56]}  Bd7 {[%clk 0:01:21]} 23. f3 {[%clk 0:01:52]}  Qg6 {[%clk 0:01:07]} 24. fxe4 {[%clk 0:01:48]}  fxe4 {[%clk 0:01:07]} 25. Be2 {[%clk 0:01:45]}  Bxh3 {[%clk 0:01:03]} 26. g3 {[%clk 0:01:41]}  Rf8 {[%clk 0:01:02]} 27. Qh4 {[%clk 0:01:36]}  Bc8 {[%clk 0:00:58]} 28. Bxa7 {[%clk 0:01:31]}  e3 {[%clk 0:00:28]} 29. Bxe3 {[%clk 0:01:26]}  Qxc2 {[%clk 0:00:28]} 30. Qd4 {[%clk 0:01:12]}  Bf5 {[%clk 0:00:25]} 31. Qc5 {[%clk 0:01:07]}  Qb3 {[%clk 0:00:22]} 32. Bd1 {[%clk 0:01:00]}  Qb2 {[%clk 0:00:20]} 33. Qb4 {[%clk 0:00:57]}  Qe5 {[%clk 0:00:15]} 34. Qxf8+ {[%clk 0:00:40]}  Kh7 {[%clk 0:00:10]} 35. Bf2 {[%clk 0:00:33]} 1-0


[Site "https://www.chess.com"]

[Event "Titled Tuesday Blitz July 13 2021"]
[White "Turzo, Attila"]
[Black "Kanyamarala, Tarun"]
[WhiteFideId "704954"]
[BlackFideId "45004714"]
[WhiteElo "2431"]
[BlackElo "2086"]
[Result "0-1"]
[Round "09"]
[TimeControl "180+1"]
[Date "2021.07.13"]
[WhiteClock "0:01:30"]
[BlackClock "0:01:14"]

1. d4 {[%clk 0:03:00]}  d5 {[%clk 0:02:55]} 2. c4 {[%clk 0:02:59]}  e6 {[%clk 0:02:53]} 3. Nf3 {[%clk 0:02:58]}  Nf6 {[%clk 0:02:53]} 4. Nc3 {[%clk 0:02:57]}  Bb4 {[%clk 0:02:51]} 5. cxd5 {[%clk 0:02:52]}  exd5 {[%clk 0:02:51]} 6. Bg5 {[%clk 0:02:52]}  h6 {[%clk 0:02:51]} 7. Bh4 {[%clk 0:02:52]}  O-O {[%clk 0:02:51]} 8. e3 {[%clk 0:02:42]}  Bf5 {[%clk 0:02:48]} 9. Be2 {[%clk 0:02:36]}  Nc6 {[%clk 0:02:40]} 10. O-O {[%clk 0:02:36]}  g5 {[%clk 0:02:29]} 11. Bg3 {[%clk 0:02:36]}  Bxc3 {[%clk 0:02:29]} 12. bxc3 {[%clk 0:02:35]}  Ne4 {[%clk 0:02:29]} 13. Ne5 {[%clk 0:02:03]}  Nxg3 {[%clk 0:02:24]} 14. f3 {[%clk 0:01:55]}  Nxf1 {[%clk 0:01:59]} 15. Bxf1 {[%clk 0:01:51]}  Nxe5 {[%clk 0:01:57]} 16. dxe5 {[%clk 0:01:51]}  c6 {[%clk 0:01:51]} 17. f4 {[%clk 0:01:51]}  g4 {[%clk 0:01:43]} 18. Be2 {[%clk 0:01:46]}  Qb6 {[%clk 0:01:36]} 19. Kf2 {[%clk 0:01:45]}  h5 {[%clk 0:01:27]} 20. Qd2 {[%clk 0:01:43]}  f6 {[%clk 0:01:23]} 21. exf6 {[%clk 0:01:40]}  Rxf6 {[%clk 0:01:22]} 22. h3 {[%clk 0:01:40]}  Re8 {[%clk 0:01:19]} 23. hxg4 {[%clk 0:01:40]}  Bxg4 {[%clk 0:01:17]} 24. Bxg4 {[%clk 0:01:40]}  hxg4 {[%clk 0:01:16]} 25. Rh1 {[%clk 0:01:39]}  Rxf4+ {[%clk 0:01:15]} 26. Kg3 {[%clk 0:01:39]}  Rfe4 {[%clk 0:01:15]} 27. Rh5 {[%clk 0:01:31]}  Qxe3+ {[%clk 0:01:14]} 28. Qxe3 {[%clk 0:01:30]}  Rxe3+ {[%clk 0:01:15]} 29. Kxg4 {[%clk 0:01:30]}  R8e4+ {[%clk 0:01:12]} 30. Kf5 {[%clk 0:01:29]}  Re5+ {[%clk 0:01:13]} 31. Kg6 {[%clk 0:01:30]}  Rxh5 {[%clk 0:01:14]} 32. Kxh5 {[%clk 0:01:30]}  Rg3 {[%clk 0:01:14]} 33. c4 {[%clk 0:01:29]}  Rxg2 {[%clk 0:01:15]} 34. a4 {[%clk 0:01:29]}  dxc4 {[%clk 0:01:15]} 35. a5 {[%clk 0:01:30]}  c3 {[%clk 0:01:14]} 36. a6 {[%clk 0:01:30]}  bxa6 {[%clk 0:01:14]} 0-1


[Site "https://www.chess.com"]

[Event "Titled Tuesday Blitz July 13 2021"]
[White "Vazquez Espino, Uriel"]
[Black "Aleksandr_Kozak"]
[WhiteFideId "5119138"]
[WhiteElo "2236"]
[BlackElo "2406"]
[Result "0-1"]
[Round "09"]
[TimeControl "180+1"]
[Date "2021.07.13"]
[WhiteClock "0:00:06"]
[BlackClock "0:00:18"]

1. e4 {[%clk 0:03:00]}  e5 {[%clk 0:02:58]} 2. Nf3 {[%clk 0:03:00]}  Nc6 {[%clk 0:02:58]} 3. Bb5 {[%clk 0:02:59]}  f5 {[%clk 0:02:58]} 4. Bxc6 {[%clk 0:02:49]}  dxc6 {[%clk 0:02:55]} 5. Nc3 {[%clk 0:02:49]}  Nf6 {[%clk 0:02:48]} 6. Qe2 {[%clk 0:02:48]}  fxe4 {[%clk 0:01:47]} 7. Nxe4 {[%clk 0:02:47]}  Bf5 {[%clk 0:01:45]} 8. Ng3 {[%clk 0:02:41]}  Bxc2 {[%clk 0:01:41]} 9. Nxe5 {[%clk 0:02:35]}  Qe7 {[%clk 0:01:33]} 10. d4 {[%clk 0:02:32]}  Bg6 {[%clk 0:01:23]} 11. Nxg6 {[%clk 0:02:27]}  hxg6 {[%clk 0:01:21]} 12. Qxe7+ {[%clk 0:02:21]}  Bxe7 {[%clk 0:01:20]} 13. O-O {[%clk 0:02:14]}  O-O-O {[%clk 0:01:18]} 14. Be3 {[%clk 0:02:01]}  Nd5 {[%clk 0:01:12]} 15. Ne4 {[%clk 0:01:46]}  Rde8 {[%clk 0:01:03]} 16. Bd2 {[%clk 0:01:32]}  Bf6 {[%clk 0:00:59]} 17. Nxf6 {[%clk 0:01:26]}  gxf6 {[%clk 0:00:58]} 18. Rfe1 {[%clk 0:01:24]}  Kd7 {[%clk 0:00:57]} 19. f3 {[%clk 0:01:12]}  b6 {[%clk 0:00:38]} 20. Rxe8 {[%clk 0:01:09]}  Kxe8 {[%clk 0:00:37]} 21. Re1+ {[%clk 0:01:07]}  Kd7 {[%clk 0:00:34]} 22. Re4 {[%clk 0:01:03]}  a5 {[%clk 0:00:29]} 23. h3 {[%clk 0:00:58]}  a4 {[%clk 0:00:27]} 24. a3 {[%clk 0:00:56]}  f5 {[%clk 0:00:20]} 25. Re5 {[%clk 0:00:53]}  Rh4 {[%clk 0:00:19]} 26. Bc3 {[%clk 0:00:47]}  Kd6 {[%clk 0:00:18]} 27. Re8 {[%clk 0:00:44]}  Nxc3 {[%clk 0:00:18]} 28. bxc3 {[%clk 0:00:43]}  Kd5 {[%clk 0:00:18]} 29. Rg8 {[%clk 0:00:40]}  Rh6 {[%clk 0:00:18]} 30. Rg7 {[%clk 0:00:34]}  Kc4 {[%clk 0:00:17]} 31. Rxc7 {[%clk 0:00:33]}  g5 {[%clk 0:00:17]} 32. Kf2 {[%clk 0:00:21]}  Rd6 {[%clk 0:00:15]} 33. Rg7 {[%clk 0:00:17]}  f4 {[%clk 0:00:15]} 34. Rxg5 {[%clk 0:00:15]}  Kxc3 {[%clk 0:00:15]} 35. h4 {[%clk 0:00:15]}  b5 {[%clk 0:00:16]} 36. h5 {[%clk 0:00:13]}  Rxd4 {[%clk 0:00:16]} 37. h6 {[%clk 0:00:11]}  Rd2+ {[%clk 0:00:16]} 38. Kg1 {[%clk 0:00:10]}  Rd6 {[%clk 0:00:14]} 39. Rh5 {[%clk 0:00:09]}  Rd8 {[%clk 0:00:14]} 40. Rc5+ {[%clk 0:00:08]}  Kb3 {[%clk 0:00:15]} 41. Rxc6 {[%clk 0:00:08]}  Kxa3 {[%clk 0:00:15]} 42. Rf6 {[%clk 0:00:07]}  b4 {[%clk 0:00:16]} 43. Rxf4 {[%clk 0:00:07]}  b3 {[%clk 0:00:17]} 44. g4 {[%clk 0:00:06]}  b2 {[%clk 0:00:18]} 0-1


[Site "https://www.chess.com"]

[Event "Titled Tuesday Blitz July 13 2021"]
[White "Wagner, Dennis"]
[Black "Liu, Manli"]
[WhiteFideId "24650684"]
[BlackFideId "8608121"]
[WhiteElo "2355"]
[BlackElo "2061"]
[Result "1/2-1/2"]
[Round "09"]
[TimeControl "180+1"]
[Date "2021.07.13"]
[WhiteClock "0:00:44"]
[BlackClock "0:00:09"]

1. Nf3 {[%clk 0:03:00]}  d5 {[%clk 0:02:58]} 2. g3 {[%clk 0:02:59]}  c6 {[%clk 0:02:57]} 3. Bg2 {[%clk 0:03:00]}  Bg4 {[%clk 0:02:57]} 4. O-O {[%clk 0:03:00]}  Nd7 {[%clk 0:02:54]} 5. h3 {[%clk 0:03:00]}  Bxf3 {[%clk 0:02:54]} 6. Bxf3 {[%clk 0:03:01]}  e5 {[%clk 0:02:54]} 7. d3 {[%clk 0:03:01]}  Ngf6 {[%clk 0:02:54]} 8. e4 {[%clk 0:03:01]}  dxe4 {[%clk 0:02:46]} 9. dxe4 {[%clk 0:03:02]}  Bc5 {[%clk 0:02:45]} 10. a4 {[%clk 0:02:58]}  O-O {[%clk 0:02:41]} 11. Nd2 {[%clk 0:02:59]}  a6 {[%clk 0:02:40]} 12. a5 {[%clk 0:02:54]}  Qe7 {[%clk 0:02:19]} 13. Qe2 {[%clk 0:02:52]}  Ba7 {[%clk 0:02:16]} 14. Nc4 {[%clk 0:02:51]}  Nc5 {[%clk 0:02:13]} 15. b4 {[%clk 0:02:44]}  Ne6 {[%clk 0:02:13]} 16. c3 {[%clk 0:02:45]}  Rfd8 {[%clk 0:02:13]} 17. h4 {[%clk 0:02:39]}  Nc7 {[%clk 0:02:11]} 18. Be3 {[%clk 0:02:22]}  Bxe3 {[%clk 0:02:05]} 19. Qxe3 {[%clk 0:02:23]}  Nb5 {[%clk 0:02:05]} 20. Nb6 {[%clk 0:02:24]}  Rab8 {[%clk 0:02:05]} 21. Be2 {[%clk 0:02:19]}  Rd6 {[%clk 0:02:04]} 22. Rad1 {[%clk 0:02:06]}  Rxd1 {[%clk 0:02:00]} 23. Rxd1 {[%clk 0:02:05]}  Rd8 {[%clk 0:02:00]} 24. Rd2 {[%clk 0:02:01]}  Rxd2 {[%clk 0:01:56]} 25. Qxd2 {[%clk 0:02:02]}  Nxe4 {[%clk 0:01:49]} 26. Qe3 {[%clk 0:02:02]}  Nexc3 {[%clk 0:01:48]} 27. Bc4 {[%clk 0:02:01]}  h6 {[%clk 0:01:36]} 28. h5 {[%clk 0:01:50]}  Qd6 {[%clk 0:01:14]} 29. Kh2 {[%clk 0:01:37]}  Nd5 {[%clk 0:01:06]} 30. Qf3 {[%clk 0:01:37]}  Nbc7 {[%clk 0:01:03]} 31. Kg2 {[%clk 0:01:33]}  Qxb4 {[%clk 0:00:49]} 32. Nxd5 {[%clk 0:01:31]}  cxd5 {[%clk 0:00:49]} 33. Bxd5 {[%clk 0:01:32]}  Nxd5 {[%clk 0:00:48]} 34. Qxd5 {[%clk 0:01:33]}  Qe7 {[%clk 0:00:48]} 35. g4 {[%clk 0:01:28]}  Kh7 {[%clk 0:00:36]} 36. Qe4+ {[%clk 0:01:24]}  g6 {[%clk 0:00:36]} 37. hxg6+ {[%clk 0:01:23]}  fxg6 {[%clk 0:00:36]} 38. Kg3 {[%clk 0:01:21]}  Kg7 {[%clk 0:00:36]} 39. f3 {[%clk 0:01:14]}  Kf6 {[%clk 0:00:30]} 40. Qe3 {[%clk 0:01:09]}  Kg7 {[%clk 0:00:23]} 41. Qe4 {[%clk 0:01:08]}  Qc7 {[%clk 0:00:23]} 42. Kh3 {[%clk 0:01:04]}  Kf6 {[%clk 0:00:18]} 43. Qd5 {[%clk 0:01:02]}  Qc6 {[%clk 0:00:16]} 44. Qd8+ {[%clk 0:01:02]}  Kg7 {[%clk 0:00:15]} 45. Qe7+ {[%clk 0:01:02]}  Kg8 {[%clk 0:00:15]} 46. Kg3 {[%clk 0:00:59]}  Qc3 {[%clk 0:00:10]} 47. Qe8+ {[%clk 0:00:54]}  Kg7 {[%clk 0:00:10]} 48. Qe7+ {[%clk 0:00:54]}  Kg8 {[%clk 0:00:10]} 49. Qf6 {[%clk 0:00:43]}  Qe1+ {[%clk 0:00:08]} 50. Kg2 {[%clk 0:00:42]}  Qe2+ {[%clk 0:00:09]} 51. Kg3 {[%clk 0:00:43]}  Qe1+ {[%clk 0:00:09]} 52. Kg2 {[%clk 0:00:43]}  Qe2+ {[%clk 0:00:08]} 53. Kh3 {[%clk 0:00:41]}  Qf1+ {[%clk 0:00:08]} 54. Kg3 {[%clk 0:00:42]}  Qg1+ {[%clk 0:00:08]} 55. Kh3 {[%clk 0:00:42]}  Qh1+ {[%clk 0:00:08]} 56. Kg3 {[%clk 0:00:43]}  Qg1+ {[%clk 0:00:08]} 57. Kh3 {[%clk 0:00:43]}  Qh1+ {[%clk 0:00:08]} 58. Kg3 {[%clk 0:00:44]}  Qg1+ {[%clk 0:00:09]} 1/2-1/2


[Site "https://www.chess.com"]

[Event "Titled Tuesday Blitz July 13 2021"]
[White "Weetik, Vjacheslav"]
[Black "Odegov, Artem"]
[WhiteFideId "4153472"]
[BlackFideId "34183644"]
[WhiteElo "2469"]
[BlackElo "2288"]
[Result "1-0"]
[Round "09"]
[TimeControl "180+1"]
[Date "2021.07.13"]
[WhiteClock "0:01:22"]
[BlackClock "0:00:01"]

1. d4 {[%clk 0:03:00]}  Nf6 {[%clk 0:02:55]} 2. c4 {[%clk 0:02:56]}  g6 {[%clk 0:02:55]} 3. Nc3 {[%clk 0:02:56]}  Bg7 {[%clk 0:02:55]} 4. e4 {[%clk 0:02:56]}  d6 {[%clk 0:02:55]} 5. Nf3 {[%clk 0:02:54]}  O-O {[%clk 0:02:56]} 6. Be2 {[%clk 0:02:55]}  e5 {[%clk 0:02:56]} 7. O-O {[%clk 0:02:55]}  Nc6 {[%clk 0:02:56]} 8. dxe5 {[%clk 0:02:55]}  dxe5 {[%clk 0:02:56]} 9. Bg5 {[%clk 0:02:55]}  Qxd1 {[%clk 0:02:36]} 10. Rfxd1 {[%clk 0:02:55]}  Bg4 {[%clk 0:02:36]} 11. h3 {[%clk 0:02:55]}  Bxf3 {[%clk 0:02:27]} 12. Bxf3 {[%clk 0:02:56]}  Nd4 {[%clk 0:02:25]} 13. Nd5 {[%clk 0:02:55]}  Nxd5 {[%clk 0:02:01]} 14. cxd5 {[%clk 0:02:54]}  f6 {[%clk 0:02:01]} 15. Be3 {[%clk 0:02:51]}  c5 {[%clk 0:01:56]} 16. dxc6 {[%clk 0:02:41]}  Nxc6 {[%clk 0:01:54]} 17. Rd7 {[%clk 0:02:30]}  Rf7 {[%clk 0:01:52]} 18. Rad1 {[%clk 0:02:29]}  Re8 {[%clk 0:01:45]} 19. Be2 {[%clk 0:02:23]}  Rxd7 {[%clk 0:00:32]} 20. Rxd7 {[%clk 0:02:23]}  f5 {[%clk 0:00:31]} 21. Bc4+ {[%clk 0:02:12]}  Kh8 {[%clk 0:00:29]} 22. Bd5 {[%clk 0:02:09]}  Nd4 {[%clk 0:00:19]} 23. Rxb7 {[%clk 0:02:03]}  f4 {[%clk 0:00:14]} 24. Bd2 {[%clk 0:02:02]}  Rc8 {[%clk 0:00:13]} 25. Rxa7 {[%clk 0:01:58]}  h5 {[%clk 0:00:07]} 26. Ra8 {[%clk 0:01:54]}  Rxa8 {[%clk 0:00:07]} 27. Bxa8 {[%clk 0:01:55]}  Bf8 {[%clk 0:00:06]} 28. b4 {[%clk 0:01:47]}  Kh7 {[%clk 0:00:05]} 29. Kf1 {[%clk 0:01:44]}  Bd6 {[%clk 0:00:05]} 30. a4 {[%clk 0:01:40]}  Nc2 {[%clk 0:00:04]} 31. b5 {[%clk 0:01:39]}  Nd4 {[%clk 0:00:05]} 32. Bc6 {[%clk 0:01:28]}  Nb3 {[%clk 0:00:05]} 33. Bc3 {[%clk 0:01:26]}  g5 {[%clk 0:00:03]} 34. a5 {[%clk 0:01:24]}  Nc5 {[%clk 0:00:01]} 35. a6 {[%clk 0:01:22]} 1-0


[Site "https://www.chess.com"]

[Event "Titled Tuesday Blitz July 13 2021"]
[White "Wilson, Elvin"]
[Black "Derraugh, Geordie"]
[WhiteFideId "2014874"]
[BlackFideId "2603950"]
[WhiteElo "2298"]
[BlackElo "2132"]
[Result "1-0"]
[Round "09"]
[TimeControl "180+1"]
[Date "2021.07.13"]
[WhiteClock "0:00:35"]
[BlackClock "0:00:05"]

1. c4 {[%clk 0:03:00]}  e5 {[%clk 0:02:59]} 2. g3 {[%clk 0:02:59]}  Nc6 {[%clk 0:02:58]} 3. Bg2 {[%clk 0:02:58]}  f5 {[%clk 0:02:59]} 4. Nc3 {[%clk 0:02:57]}  Nf6 {[%clk 0:02:59]} 5. e3 {[%clk 0:02:57]}  d5 {[%clk 0:02:59]} 6. cxd5 {[%clk 0:02:57]}  Nb4 {[%clk 0:02:59]} 7. d3 {[%clk 0:02:56]}  Nbxd5 {[%clk 0:02:59]} 8. Nxd5 {[%clk 0:02:51]}  Nxd5 {[%clk 0:02:58]} 9. Nf3 {[%clk 0:02:51]}  Bd6 {[%clk 0:02:52]} 10. O-O {[%clk 0:02:50]}  c6 {[%clk 0:02:51]} 11. e4 {[%clk 0:02:48]}  Nf6 {[%clk 0:02:41]} 12. exf5 {[%clk 0:02:39]}  Bxf5 {[%clk 0:02:41]} 13. Re1 {[%clk 0:02:24]}  Qc7 {[%clk 0:02:25]} 14. Nxe5 {[%clk 0:01:57]}  Bxe5 {[%clk 0:02:23]} 15. Bf4 {[%clk 0:01:56]}  O-O-O {[%clk 0:02:07]} 16. Bxe5 {[%clk 0:01:46]}  Qb6 {[%clk 0:02:05]} 17. d4 {[%clk 0:01:46]}  Qxb2 {[%clk 0:02:00]} 18. Qa4 {[%clk 0:01:35]}  Qb6 {[%clk 0:01:48]} 19. Rac1 {[%clk 0:01:29]}  Nd5 {[%clk 0:01:42]} 20. Bxg7 {[%clk 0:01:23]}  Rhg8 {[%clk 0:01:35]} 21. Be5 {[%clk 0:01:23]}  h5 {[%clk 0:01:33]} 22. h4 {[%clk 0:01:21]}  Rg6 {[%clk 0:01:12]} 23. Rc5 {[%clk 0:01:17]}  Be6 {[%clk 0:00:50]} 24. Qc2 {[%clk 0:01:07]}  Rgg8 {[%clk 0:00:43]} 25. Rb1 {[%clk 0:01:07]}  Qa6 {[%clk 0:00:38]} 26. Bf1 {[%clk 0:01:01]}  Nb4 {[%clk 0:00:12]} 27. Rxb4 {[%clk 0:00:51]}  Qxa2 {[%clk 0:00:11]} 28. Rxc6+ {[%clk 0:00:47]}  Kd7 {[%clk 0:00:10]} 29. Rc7+ {[%clk 0:00:35]}  Ke8 {[%clk 0:00:09]} 30. Bb5+ {[%clk 0:00:36]}  Kf8 {[%clk 0:00:07]} 31. Qc5+ {[%clk 0:00:35]}  Rd6 {[%clk 0:00:05]} 32. Qxd6# {[%clk 0:00:35]} 1-0


[Site "https://www.chess.com"]

[Event "Titled Tuesday Blitz July 13 2021"]
[White "Yuan, Qingyu"]
[Black "Mortazavi, Ali"]
[WhiteFideId "8609772"]
[BlackFideId "401323"]
[WhiteElo "2359"]
[BlackElo "2339"]
[Result "0-1"]
[Round "09"]
[TimeControl "180+1"]
[Date "2021.07.13"]
[WhiteClock "0:00:15"]
[BlackClock "0:00:09"]

1. e4 {[%clk 0:03:00]}  c6 {[%clk 0:02:55]} 2. d4 {[%clk 0:02:56]}  d5 {[%clk 0:02:55]} 3. e5 {[%clk 0:02:56]}  Bf5 {[%clk 0:02:52]} 4. Nd2 {[%clk 0:02:56]}  e6 {[%clk 0:02:45]} 5. Nb3 {[%clk 0:02:56]}  Ne7 {[%clk 0:02:40]} 6. Nf3 {[%clk 0:02:55]}  Nd7 {[%clk 0:02:38]} 7. Be2 {[%clk 0:02:55]}  Ng6 {[%clk 0:02:34]} 8. O-O {[%clk 0:02:54]}  f6 {[%clk 0:02:33]} 9. exf6 {[%clk 0:02:37]}  Qxf6 {[%clk 0:02:27]} 10. Bg5 {[%clk 0:02:21]}  Qf7 {[%clk 0:02:27]} 11. c4 {[%clk 0:02:21]}  Bd6 {[%clk 0:02:24]} 12. Na5 {[%clk 0:02:17]}  Rb8 {[%clk 0:02:21]} 13. Be3 {[%clk 0:02:07]}  O-O {[%clk 0:02:20]} 14. Qd2 {[%clk 0:02:02]}  h6 {[%clk 0:02:10]} 15. b4 {[%clk 0:01:56]}  Bg4 {[%clk 0:01:56]} 16. Ng5 {[%clk 0:01:45]}  Qf5 {[%clk 0:01:44]} 17. f3 {[%clk 0:01:33]}  hxg5 {[%clk 0:01:22]} 18. fxg4 {[%clk 0:01:32]}  Qe4 {[%clk 0:01:16]} 19. Bd3 {[%clk 0:01:06]}  Qxg4 {[%clk 0:01:16]} 20. Bxg6 {[%clk 0:01:01]}  Qh4 {[%clk 0:01:16]} 21. g3 {[%clk 0:00:53]}  Bxg3 {[%clk 0:01:08]} 22. Qg2 {[%clk 0:00:38]}  Bf4 {[%clk 0:01:00]} 23. Bf2 {[%clk 0:00:31]}  Qh6 {[%clk 0:00:56]} 24. Bd3 {[%clk 0:00:30]}  Nf6 {[%clk 0:00:44]} 25. Rae1 {[%clk 0:00:25]}  Nh5 {[%clk 0:00:36]} 26. Re2 {[%clk 0:00:22]}  Bd6 {[%clk 0:00:22]} 27. Be3 {[%clk 0:00:20]}  Rxf1+ {[%clk 0:00:20]} 28. Qxf1 {[%clk 0:00:21]}  Bxb4 {[%clk 0:00:19]} 29. Nb3 {[%clk 0:00:19]}  Nf4 {[%clk 0:00:18]} 30. Bxf4 {[%clk 0:00:18]}  gxf4 {[%clk 0:00:19]} 31. c5 {[%clk 0:00:18]}  a5 {[%clk 0:00:17]} 32. a4 {[%clk 0:00:16]}  Rf8 {[%clk 0:00:15]} 33. Qf3 {[%clk 0:00:16]}  Rf6 {[%clk 0:00:12]} 34. Rg2 {[%clk 0:00:16]}  Qh4 {[%clk 0:00:11]} 35. Kf1 {[%clk 0:00:15]}  Qe1# {[%clk 0:00:09]} 0-1


[Site "https://www.chess.com"]